Cogmind - Beta 13 @@@ ROGUE MODE // 2024.06.27 @ 13:10:57 Player: Jazzer Result: Destroyed by as-30345 with Assembled Blade Performance ------------- Evolutions (0) 0 Regions Visited (4) 800 Robots Destroyed (39) 195 Value Destroyed (720) 720 Prototype IDs (25) 500 Alien Tech Used (0) 0 Bonus (470) 470 TOTAL SCORE: 2685 Bonus ------- Follower Combat Kills 170 Aligned with FarCom 300 Cogmind --------- Core Integrity 0/250 Matter 256/300 Energy 84/100 System Corruption 6% Temperature Cool (34) Movement Core (1400) Ox27 Location -9/Mines Parts ------- > --- POWER (1) -------- (None) > --- PROPULSION (2) --- (None) > --- UTILITY (2) ------ Huge Storage Unit > --- WEAPON (2) ------- Particle Gun Light Assault Rifle > --- INVENTORY (25) --- Ion Engine Ion Engine Light Ion Engine Light Ion Engine Aluminum Leg Compact Wheel Compact Wheel Subdweller Monowheel Heat Sink Improved Heat Sink High-capacity Matter Pod (200) Structural Scanner Modified TNC Hacking Suite Medium Laser Small Laser Light Assault Rifle Light Assault Rifle Light Assault Rifle Light Assault Rifle Light Assault Rifle Hammer Peak State ------------ > --- POWER ------------ Ion Engine > --- PROPULSION ------- Wheel Wheel > --- UTILITY ---------- Huge Storage Unit Light Armor Plating > --- WEAPON ----------- EM Pulse Gun Light Assault Rifle > --- INVENTORY -------- Subdweller Monowheel High-capacity Matter Pod Structural Scanner Hacking Suite Medium Laser Small Laser Light Assault Rifle Light Assault Rifle Light Assault Rifle Light Assault Rifle Grenade Launcher Hammer Signal Generator [Rating: 9] Favorites ----------- Power Ion Engine Engine Ion Engine Propulsion Wheel Treads Light Treads Leg Aluminum Leg Wheel Wheel Utility Huge Storage Unit Storage Huge Storage Unit Processor Signal Interpreter Protection Light Armor Plating Weapon Light Assault Rifle Energy Gun Medium Laser Ballistic Gun Light Assault Rifle Launcher Grenade Launcher Build | -11 -10 -10 -10 -9 ------- Run | Yrd Mat Min Exi Min Slots Evolved . | . . . . . Power . | . . . . . Propulsion . | . . . . . Utility . | . . . . . Weapon . | . . . . . Parts Attached 23 | . 11 4 . 8 Power 1 | . 1 . . . Engine 1 | . 1 . . . Core . | . . . . . Reactor . | . . . . . Propulsion 10 | . 5 1 . 4 Treads 2 | . 2 . . . Leg 2 | . 1 . . 1 Wheel 6 | . 2 1 . 3 Hover . | . . . . . Flight . | . . . . . Utility 4 | . 2 2 . . Device . | . . . . . Storage 1 | . 1 . . . Processor 1 | . . 1 . . Hackware . | . . . . . Protection 2 | . 1 1 . . Artifact . | . . . . . Weapon 8 | . 3 1 . 4 Energy Gun 3 | . 1 . . 2 Energy Cannon . | . . . . . Ballistic Gun 3 | . 2 1 . . Ballistic Cannon . | . . . . . Launcher 2 | . . . . 2 Special Weapon . | . . . . . Impact Weapon . | . . . . . Slashing Weapon . | . . . . . Piercing Weapon . | . . . . . Special Melee Weapon . | . . . . . Unidentified Prototypes . | . . . . . Parts Lost 11 | . 2 2 . 7 Power 2 | . 1 . . 1 Propulsion 5 | . . 1 . 4 Utility 1 | . . . . 1 Weapon 3 | . 1 1 . 1 Highest Loss Streak 4 | . 1 1 . 4 To Critical Strikes . | . . . . . Average Slot Usage (%) 92 | . 96 100 100 73 Engine 13 | . 13 14 14 13 Treads 1 | . 3 . . . Leg 4 | . 10 . . 1 Wheel 19 | . 14 28 28 15 Storage 14 | . 14 14 14 14 Protection 9 | . 10 13 14 . Energy Gun 12 | . 17 7 . 12 Ballistic Gun 15 | . 10 20 28 14 Naked Turns . | . . . . . Heaviest Build 91 | 12 91 91 90 90 Greatest Support 40 | 20 40 20 20 32 Greatest Overweight (x) 29 | . 8 9 4 29 Average Overweight (x) 3 | . 2 4 4 8 Largest Inventory Capacity 25 | . 25 25 25 25 Average Capacity 22 | . 17 25 25 25 Most Carried 23 | . 13 13 13 23 Average Carried 12 | . 9 11 12 19 Final Capacity 25 | 8 25 25 25 25 Final Carried 22 | 6 13 12 13 22 Class Distribution -------------------- 100% | Mutant Dominant Class ---------------- Mutant | -10/Materials Mutant | -10/Mines Mutant | -10/Exiles Mutant | -9/Mines Resources | -11 -10 -10 -10 -9 ----------- Run | Yrd Mat Min Exi Min Matter Collected 729 | 194 364 52 . 119 Remotely . | . . . . . Salvage Created 1140 | . 706 100 . 334 Parts 82 | . 50 12 . 20 Haulers Intercepted 2 | . 2 . . . Recyclers Shooed 3 | . 1 . . 2 Parts Field Recycled . | . . . . . Retrieved Matter . | . . . . . Parts Self-Destructed . | . . . . . Prevented . | . . . . . Kills | -11 -10 -10 -10 -9 ------- Run | Yrd Mat Min Exi Min Combat Hostiles Destroyed 31 | . 13 4 . 14 Guns 16 | . 13 2 . 1 AOE 15 | . . 2 . 13 Classes Destroyed 11 | . 9 . . 2 Worker 1 | . 1 . . . Builder 3 | . 2 1 . . Tunneler 1 | . 1 . . . Hauler 2 | . 2 . . . Recycler 3 | . 1 . . 2 Operator 1 | . 1 . . . Watcher 3 | . 3 . . . Swarmer 11 | . 4 3 . 4 Grunt 13 | . 9 1 . 3 Brawler 1 | . . . . 1 Assembled 6 | . . . . 6 Best Kill Streak 8 | . 4 4 . 8 Combat Bots Only 8 | . 3 3 . 8 Max Kills in Single Turn 4 | . 2 2 . 4 Gunslinging . | . . . . . Exploded 4 | . . 2 . 4 Melee . | . . . . . Uniques/NPCs Destroyed . | . . . . . Combat | -11 -10 -10 -10 -9 -------- Run | Yrd Mat Min Exi Min Hostile Shots Fired 105 | . 52 10 . 43 Missed 22 | . 11 3 . 8 Damage Taken 1166 | . 453 115 . 598 Core 265 | . 98 45 . 122 Absorbed by Shields . | . . . . . Core Remaining (%) 100 | 100 . . . . Volleys Fired 99 | . 66 9 . 24 Largest 2 | . 2 2 . 2 Hottest 90 | . 90 60 . 85 Shots Fired 189 | . 132 18 . 39 Gun 180 | . 132 18 . 30 Cannon . | . . . . . Launcher 9 | . . . . 9 Special . | . . . . . Kinetic 83 | . 54 12 . 17 Thermal 73 | . 60 . . 13 Explosive 9 | . . . . 9 Electromagnetic 24 | . 18 6 . . Robot Hit Streak 10 | . 10 4 . 5 Robot Miss Streak 6 | . 6 2 . 2 Penetration Max . | . . . . . Secondary Targets 1 | . 1 . . . Max Gunslinging Chain 1 | . 1 . . . Shots Hit Robots 108 | . 75 10 . 23 Core Hits 73 | . 36 8 . 29 Critical Kills . | . . . . . Critical Parts Destroyed 1 | . 1 . . . Critical Strikes 5 | . 2 . . 3 Burn 4 | . 1 . . 3 Destroy 1 | . 1 . . . Melee Attacks . | . . . . . Impact . | . . . . . Slashing . | . . . . . Piercing . | . . . . . Sneak Attacks . | . . . . . Combat Hostiles . | . . . . . Follow-up Attacks . | . . . . . Damage Inflicted 2073 | . 939 209 . 925 Guns 1210 | . 916 109 . 185 Cannons . | . . . . . Explosions 863 | . 23 100 . 740 Melee . | . . . . . Ramming . | . . . . . Kinetic 363 | . 222 58 . 83 Thermal 693 | . 491 100 . 102 Explosive 740 | . . . . 740 Electromagnetic 277 | . 226 51 . . Impact . | . . . . . Slashing . | . . . . . Piercing . | . . . . . Highest Corruption 6 | . . . . 6 Average Corruption 5 | . . . . 5 Corruption Purged . | . . . . . Corruption Blocked . | . . . . . Overload Shots . | . . . . . Overflow Damage 6 | . . . . 6 Projectiles . | . . . . . Explosions 6 | . . . . 6 Melee . | . . . . . Knockbacks . | . . . . . Impact . | . . . . . Kinetic . | . . . . . Secondary . | . . . . . Self-Inflicted Damage 108 | . . 35 . 73 Shots 4 | . . 1 . 3 Rammed . | . . . . . Targets Rammed . | . . . . . Kicked . | . . . . . Crushed . | . . . . . Highest Temperature 356 | . 356 73 . 60 Average Temperature 80 | . 94 22 . 23 Received Heat Transfer 189 | . 144 24 . 21 Siege Activations . | . . . . . Robots Corrupted . | . . . . . Combat Hostiles . | . . . . . Parts Fried 1 | . 1 . . . Impact Corruptions . | . . . . . Robots Melted . | . . . . . Combat Hostiles . | . . . . . Parts Melted 4 | . 3 . . 1 Heat Transferred 2074 | . 1456 100 . 518 Parts Sabotaged . | . . . . . Parts Stolen . | . . . . . Parts Stripped . | . . . . . Power Chain Reactions 2 | . 1 1 . . Alert | -11 -10 -10 -10 -9 ------- Run | Yrd Mat Min Exi Min Peak Influence 238 | . 238 169 . 199 Initial 37 | . . 37 . . Average 92 | . 97 85 . 91 Maximum Alert Level 1 | . 1 . . 1 Low Security (%) 95 | . 89 100 . 99 Level 1 4 | . 10 . . . Level 2 . | . . . . . Level 3 . | . . . . . Level 4 . | . . . . . Level 5 . | . . . . . High Security . | . . . . . Max Security . | . . . . . Squads Dispatched 5 | . 4 1 . . Investigation 3 | . 3 . . . Extermination . | . . . . . Reinforcement 1 | . 1 . . . Assault 1 | . . 1 . . Garrison . | . . . . . Intercept . | . . . . . Searches Triggered . | . . . . . Construction Impeded . | . . . . . Haulers Reinforced . | . . . . . Active Scanning Responses . | . . . . . Cargo Convoy Interrupts . | . . . . . Stealth | -11 -10 -10 -10 -9 --------- Run | Yrd Mat Min Exi Min Distress Signals . | . . . . . Communications Jammed . | . . . . . Distress Signals . | . . . . . Times Spotted 55 | . 20 12 . 23 Peak Tracking Total 13 | . 3 4 . 13 Tactical Retreats 3 | . 2 1 . . Traps | -11 -10 -10 -10 -9 ------- Run | Yrd Mat Min Exi Min Traps Triggered 4 | . 4 . . . Indirectly . | . . . . . Trap Hack Attempts . | . . . . . Triggered . | . . . . . Disarmed . | . . . . . Reprogrammed . | . . . . . Reused . | . . . . . Traps Extracted . | . . . . . Installed . | . . . . . Triggered . | . . . . . Machines | -11 -10 -10 -10 -9 ---------- Run | Yrd Mat Min Exi Min Machines Disabled 1 | . . . . 1 Max in Single Turn . | . . . . . Machines Repaired . | . . . . . Machines Dismantled . | . . . . . Machines Sabotaged . | . . . . . Overloaded Fab Kills . | . . . . . Hacking | -11 -10 -10 -10 -9 --------- Run | Yrd Mat Min Exi Min Machines Accessed 7 | . 5 . 2 . Terminals 5 | . 5 . . . Fabricators . | . . . . . Repair Stations . | . . . . . Recycling Units . | . . . . . Scanalyzers . | . . . . . Garrison Access . | . . . . . Total Hacks 16 | . 14 . 2 . Successful 9 | . 7 . 2 . Failed 6 | . 6 . . . Catastrophic 1 | . 1 . . . Database Lockouts 1 | . 1 . . . Manual 17 | . 16 . 1 . Terminals 14 | . 14 . . . Fabricators . | . . . . . Repair Stations . | . . . . . Recycling Units . | . . . . . Scanalyzers . | . . . . . Garrison Access . | . . . . . Terminal Hacks 5 | . 3 . 2 . Record 1 | . . . 1 . Robot Analysis 1 | . 1 . . . Prototype ID Bank 1 | . 1 . . . Hauler Manifests 1 | . 1 . . . Derelict Proto ID Bank 1 | . . . 1 . Fabricator Hacks . | . . . . . Repair Station Hacks . | . . . . . Recycling Unit Hacks . | . . . . . Scanalyzer . | . . . . . Garrison Access Hacks . | . . . . . Unauthorized Hacks 4 | . 4 . . . Terminals 4 | . 4 . . . Botnet 4 | . 4 . . . Fabricators . | . . . . . Repair Stations . | . . . . . Recycling Units . | . . . . . Scanalyzers . | . . . . . Garrison Access . | . . . . . Data Cores Recovered . | . . . . . Used . | . . . . . Hacking Detections 6 | . 6 . . . Full Trace Events . | . . . . . Feedback Events . | . . . . . Feedback Blocked . | . . . . . Robot Schematics Acquired . | . . . . . Robots Built . | . . . . . Authchips . | . . . . . Time . | . . . . . Total Robot Build Rating . | . . . . . Part Schematics Acquired . | . . . . . Parts Built . | . . . . . Authchips . | . . . . . Time . | . . . . . Total Part Build Rating . | . . . . . Parts Repaired . | . . . . . Time . | . . . . . Parts Recycled . | . . . . . Recycled Matter . | . . . . . Retrieved Matter . | . . . . . Retrieved Components . | . . . . . Parts Scanalyzed . | . . . . . Part Schematics Acquired . | . . . . . Parts Damaged . | . . . . . Bothacking | -11 -10 -10 -10 -9 ------------ Run | Yrd Mat Min Exi Min Used RIF Installer . | . . . . . Robots Hacked . | . . . . . Non-combat . | . . . . . Combat . | . . . . . Robot Hacks Applied . | . . . . . Relay Couplers Released . | . . . . . Fabnet Peak Effective % . | . . . . . Robots Rewired . | . . . . . Allies Hacked . | . . . . . Hacks Repelled . | . . . . . Allies | -11 -10 -10 -10 -9 -------- Run | Yrd Mat Min Exi Min Total Allies 4 | . . 4 . . Largest Group 4 | . . 4 3 1 Highest-Rated Group 71 | . . 71 55 13 Highest-Rated Ally 31 | . . 31 23 13 Total Orders . | . . . . . Ally Attacks 34 | . . 25 . 9 Total Damage 464 | . . 344 . 120 Kills 7 | . . 5 . 2 Allies Corrupted . | . . . . . Allies Melted . | . . . . . Intel | -11 -10 -10 -10 -9 ------- Run | Yrd Mat Min Exi Min Robot Analysis Total 1 | . 1 . . . Derelict Logs Recovered 2 | . . 1 . 1 Drone Launches . | . . . . . Drone Recoveries . | . . . . . Exploration | -11 -10 -10 -10 -9 ------------- Run | Yrd Mat Min Exi Min Turns Passed 3360 | . 1281 922 361 796 Spaces Moved 1776 | 1 739 621 258 157 Core 31 | . . . . 31 Treads 35 | . 35 . . . Legs 348 | 1 334 . . 13 Wheels 1362 | . 370 621 258 113 Hover . | . . . . . Flight . | . . . . . Fastest Speed 120 | 120 120 140 140 130 Average Speed 165 | 120 133 140 140 455 Slowest Speed 1500 | 120 200 215 140 1500 Overloaded Moves . | . . . . . Propulsion Burnouts . | . . . . . Robots Hopped . | . . . . . Cave-ins Triggered . | . . . . . Exploration Rate (%) 57 | 2 93 98 61 32 Regions Visited 4 Branch Regions 3 Pre-discovered Areas 1 | . . . 1 . Known Exits Taken . | . . . . . Unknown Exits Taken 4 | 1 1 1 1 . Scrap Searched 2 | . . 1 . 1 Spaces Dug . | . . . . . Terrain Destroyed 25 | . 3 7 . 15 Melee . | . . . . . Projectile . | . . . . . AOE 25 | . 3 7 . 15 Terrain Rammed . | . . . . . Walls Destroyed . | . . . . . Machines Disabled . | . . . . . Actions | -11 -10 -10 -10 -9 --------- Run | Yrd Mat Min Exi Min Total 2030 | . 914 657 258 201 Wait 97 | . 76 20 . 1 Move 1772 | . 738 620 257 157 Hop . | . . . . . Pick Up 25 | . 13 2 1 9 Fast Attach 6 | . 2 1 . 3 Attach 7 | . 3 2 . 2 Detach 5 | . 2 1 . 2 Swap 10 | . 6 1 . 3 Drop 9 | . 8 1 . . Fire 99 | . 66 9 . 24 Melee . | . . . . . Ram . | . . . . . Kick . | . . . . . Crush . | . . . . . Escape Stasis . | . . . . . Rewire . | . . . . . Trap . | . . . . . Miscellaneous . | . . . . . Route ------- -11/Scrapyard -10/Materials (discovered 6 exits: *Mat x3 / [*Min x2] / [*Sub]) -10/Mines (discovered 3 exits: *Mat x2 / *Exi) -10/Exiles (discovered 2 exits: [*Min x2]) -9/Mines History --------- Turn | Location | Event 1 | -11/Scrapyard | Discovered new exit (range 0) 1 | -11/Scrapyard | Entered Materials 64 | -10/Materials | Discovered new exit (range 16) 127 | -10/Materials | Central database locked down 166 | -10/Materials | Discovered new exit (range 8) 191 | -10/Materials | Discovered new exit (range 14) 346 | -10/Materials | Build established: Mutant 501 | -10/Materials | Derelicts attacked the area 800 | -10/Materials | Discovered new exit (range 10) 1181 | -10/Materials | Discovered new exit (range 15) 1206 | -10/Materials | Discovered new exit (range 14) 1282 | -10/Materials | Entered Mines 1295 | -10/Mines | Discovered new exit (range 8) 1306 | -10/Mines | Core integrity fell below 50% 1307 | -10/Mines | Met a Derelict bent on vengeance 1484 | -10/Mines | Deemed a non-threat by the Exiles lab entrance 1484 | -10/Mines | Discovered new exit (range 5) 1597 | -10/Mines | Assisted by bots powering up and referring to "LRC-V3" 1653 | -10/Mines | Learned Materials security intel 1682 | -10/Mines | Met a Derelict testing a Signal Generator 1683 | -10/Mines | Discovered new exit (range 4) 1688 | -10/Mines | Found Signal Generator 1717 | -10/Mines | Identified exit to Materials 2204 | -10/Mines | Entered Exiles 2204 | -10/Exiles | Accompanied by 3 allies 2225 | -10/Exiles | Discovered new exit (range 15) 2253 | -10/Exiles | Met 8R-AWN 2274 | -10/Exiles | Met EX-HEX 2315 | -10/Exiles | Met EX-BIN 2332 | -10/Exiles | Aligned with FarCom system 2333 | -10/Exiles | Given EX-Vault access code 2365 | -10/Exiles | Opened EX-Vault 2374 | -10/Exiles | Found Modified TNC 2404 | -10/Exiles | Warned to stay clear of 0b10 Research branches 2423 | -10/Exiles | Exiles lab attacked by MAIN.C 2455 | -10/Exiles | Learned location of Zion (-7) 2551 | -10/Exiles | Discovered new exit (range 10) 2565 | -10/Exiles | Left Exiles lab with Modified TNC 2565 | -10/Exiles | Entered Mines 2565 | -9/Mines | Accompanied by 3 allies 2610 | -9/Mines | Core integrity fell below 20% 2611 | -9/Mines | Lost 4 allies 2628 | -9/Mines | Lost 3 parts (2n1u) 2637 | -9/Mines | Destroyed 8 combat bots 2699 | -9/Mines | Learned Materials terminal intel 3325 | -9/Mines | Assembled infested the area 3361 | -9/Mines | Destroyed by as-30345 with Assembled Blade Last Messages --------------- 03315_ Found Med. Matter Pod. 03315_ Found Aluminum Leg. 03315_ Found 27 Matter. 03325_ ALERT: Infestation in the mines, dispatching Demolisher response squad. 03341_ T-07 Excavator destroyed. 03346_ as-58591 destroyed. 03349_ Ion Engine destroyed. 03350_ as-64245 destroyed. 03352_ Acquired 7 matter. 03354_ as-33023 destroyed. 03354_ as-98963 destroyed. 03354_ as-15040 destroyed. 03356_ Destroyed Asb. F-torch. 03356_ as-91845 destroyed. 03356_ Com. Wheel destroyed. 03356_ System corrupted by crushing effect (+5). 03356_ Grenade Launcher destroyed. 03359_ Com. Wheel destroyed. 03359_ System corrupted by crushing effect (+1). Map ----- +----------------------------------------------------+ | ???????????????????????????????????????????????? | | ???????????????????????????????????????????????? | | ???????????????????????????????????????????????? | | ???????????????????????????????????????????????? | | ???????????????????????????????????????????????? | | ???????????????????????????????????????????????? | | ???????????????????????????????????????????????? | | ???????????????????????????????????????????????? | | ???????????????????????????###?????????????????? | | ??????????????????????????? #?????????????????? | | ???????????????????????????# #?????????????????? | | ???????????????????????????# #?????????????????? | | ???????????????????????????# #?????????????????? | | ??????????????#####?##?????# #?????????????????? | | ?????????#%#### # ## ####?# #?#######?????????? | | ?????????#" #?# #?# #?????????? | | ?????????# #?# #?# ##????????? | | ?????????# a%= #?# #?# """ ?????????? | | ????????## % #?#=#?# """ #?????????? | | ????????## #?#=#?# """C#?????????? | | ?????????# % a #?#%#?# #?????????? | | ????????## % a #?#!#?# #?????????? | | ????????## ###[##### ##?????????? | | ????????## t a!!% % #??????????? | | ????????## a ###### ## #######????? | | ????????## a@ #????# ## # # #????? | | ????????## a #????# ## ### #????? | | ????????## #???? ## #????? | | ????????## #????#### #????? | | ?????????###### ##########???????## % #????? | | ??????????##### # ###?###????????# ###### | | ???????######## ####???# ????????# | | ??????# #???# #??????### ### | | ??????# #???# #??????# #???? | | ??????# ##### #??## #??????## ##???? | | ??????#####?????# #### ##????## ##????? | | ????????????????# ###?## #?????? | | ???????????????## ### #?????? | | ???????????????# #?????? | | ???????????????# ## ### ##?????? | | ???????????????## #### ##?### #??????? | | ????????????????## #??#######????# #??????? | | ?????????????????# #?????????????# #??????? | | ?????????????????# #?????????????# #??????? | | ????????????????# #?????????????# ??????? | | ???????????????# ?????????????# ??????? | | ??????????????# ### #????????????#####?????? | | ??????????????# ##?# ??????????????????????? | | ??????????????# ???# #?????????????????????? | | ??????????????# ?????#???????????????????????? | +----------------------------------------------------+ Best States ------------- Heat Dissipation 25 Energy Generation 10 Energy Capacity 250 Matter Stores 300 Matter Capacity 300 Sight Range 16 Terrain Scan Density 10 Armor Coverage 150 Evasion (%) 55 Recoil Reduction 2 Item Schematics ----------------- None Robot Schematics ------------------ None Fabricated ------------ Nothing Alien Tech Used ----------------- None Achievements -------------- None Challenges ------------ None Game ------ Seed CloakingTerrabombChronowheel Manual? 0 Play Time 00:30:07 Cumulative 281.2 hours Start 2024.06.27 @ 12:35:28 End 2024.06.27 @ 13:10:57 Sessions 1 Manual Loads 0 Difficulty Rogue Special Mode None Game No. 160 Rogue 160 Adventurer 0 Explorer 0 Win Type - Total 2 Types 2/0/0/0/0/0/0/0/0 Lore% 49 Gallery% 59 Achievement% 34 Wizard Run 0 Options --------- Layout 0 ASCII 0 Keyboard 1 Movement Numpad Keybinds 0 Fullscreen 2 Font 18/SmallcapsGlow Map View 76x50 Zoom Use 0% Tactical HUD 1 Map Filters NONE Filters NONE Steam 1 RUN: d5fa83da-910e-4521-b66f-0338c405f47d